fUST/lending_fUST_20250405
["ID","MTS","AMOUNT","RATE_DAILY","PERIOD"]
[357175840,1743859858086,-500.0,0.00022739,2]
[357175841,1743859858095,-2473.04,0.00022739,2]
[357175842,1743859858104,-500.0,0.00022739,2]
[357175843,1743859858114,-1572.71,0.00022739,2]
[357175844,1743859858123,-678.98,0.00022739,2]
[357175845,1743859858133,-3271.08,0.00022739,2]
[357175846,1743859858142,-500.0,0.00022739,2]
[357175847,1743859858152,-500.0,0.00022739,2]
[357175848,1743859858162,-8408.16,0.00022739,2]
[357175849,1743859858171,-1191.1,0.00022739,2]
[357175850,1743859858181,-4899.66,0.00022739,2]
[357175851,1743859858190,-500.0,0.00022739,2]
[357175852,1743859858200,-885.72,0.00022739,2]
[357175853,1743859858209,-500.0,0.00022739,2]
[357175854,1743859858219,-696.05,0.00022739,2]
[357175855,1743859858229,-500.0,0.00022739,2]
[357175856,1743859858238,-500.0,0.00022739,2]
[357175857,1743859858247,-500.0,0.00022739,2]
[357175858,1743859858256,-2077.48,0.00022739,2]
[357175859,1743859858266,-569.02,0.00022739,2]
[357175860,1743859858275,-2289.66,0.00022739,2]
[357175861,1743859858285,-500.0,0.00022739,2]
[357175862,1743859858294,-679.83,0.00022739,2]
[357175863,1743859858304,-49435.46,0.00022739,2]
[357175864,1743859858314,-2044.32,0.00022739,2]
[357175865,1743859858324,-3160.91,0.00022739,2]
[357175866,1743859858334,-500.0,0.00022739,2]
[357175867,1743859858343,-867.48,0.00022739,2]
[357175868,1743859858353,-1005.19,0.00022739,2]
[357175869,1743859858362,-1762.72,0.00022739,2]
[357175870,1743859858371,-500.0,0.00022739,2]
[357175871,1743859858381,-500.0,0.00022739,2]
[357175872,1743859858391,-5023.77,0.00022739,2]
[357175873,1743859858400,-500.0,0.00022739,2]
[357175874,1743859858410,-737.72,0.00022739,2]
[357175875,1743859858420,-973.86,0.00022739,2]
[357175876,1743859858430,-500.0,0.00022739,2]
[357175877,1743859858439,-500.0,0.00022739,2]
[357175878,1743859858449,-500.96,0.00022739,2]
[357175879,1743859858458,-500.05,0.00022739,2]
[357175880,1743859858470,-990.94,0.00022739,2]
[357175881,1743859858481,-500.0,0.00022739,2]
[357175882,1743859858490,-500.0,0.00022739,2]
[357175883,1743859858499,-1947.85,0.00022739,2]
[357175884,1743859858509,-968.64,0.00022739,2]
[357175885,1743859858519,-500.0,0.00022739,2]
[357175886,1743859858528,-924.68,0.00022739,2]
[357175887,1743859858538,-1885.49081329,0.00023,2]
[357175888,1743859858550,-2000.0,0.00023,4]
[357175889,1743859858559,-710.35,0.00023013,2]
[357175890,1743859858569,-500.0,0.00023013,2]
[357175891,1743859858579,-961.8,0.00023013,2]
[357175892,1743859858589,-852.98,0.00023013,2]
[357175893,1743859858599,-938.67,0.00023013,2]
[357175894,1743859858608,-500.0,0.00023013,2]
[357175895,1743859858618,-500.0,0.00023013,2]
[357175896,1743859858627,-500.0,0.00023013,2]
[357175897,1743859858637,-500.0,0.00023013,2]
[357175898,1743859858647,-500.0,0.00023013,2]
[357175899,1743859858657,-500.0,0.00023013,2]
[357175900,1743859858666,-500.0,0.00023013,2]
[357175901,1743859858676,-500.0,0.00023013,2]
[357175902,1743859858686,-510.53,0.00023013,2]
[357175903,1743859858754,-164.383878,0.00023013,7]
[357175904,1743859858766,-151.0,0.00023013,7]
[357175905,1743859858776,-500.0,0.00023013,2]
[357175906,1743859858786,-500.0,0.00023013,2]
[357175907,1743859858797,-953.92,0.00023013,2]
[357175908,1743859858806,-270.56008469,0.00023013,2]
[357175909,1743859858816,-500.0,0.00023013,2]
[357175910,1743859858825,-1128.6,0.00023013,2]
[357175911,1743859858835,-324.42039715,0.00023013,2]
[357175912,1743859858844,-3429.77,0.00023013,2]
[357175913,1743859858854,-1872.54,0.00023013,2]
[357175914,1743859858863,-555.9,0.00023013,2]
[357175915,1743859858872,-3080.4,0.00023013,2]
[357175916,1743859858882,-933.84,0.00023013,2]
[357175917,1743859858891,-1244.89,0.00023013,2]
[357175918,1743859858902,-8059.55,0.00023013,2]
[357175919,1743859858911,-500.0,0.00023013,2]
[357175920,1743859858921,-500.0,0.00023013,2]
[357175921,1743859858930,-1252.18,0.00023013,2]
[357175922,1743859858940,-500.0,0.00023013,2]
[357175923,1743859858950,-2473.04,0.00023013,2]
[357175924,1743859858959,-500.0,0.00023013,2]
[357175925,1743859858968,-1572.71,0.00023013,2]
[357175926,1743859858978,-678.98,0.00023013,2]
[357175927,1743859858987,-3271.08,0.00023013,2]
[357175928,1743859858997,-500.0,0.00023013,2]
[357175929,1743859859006,-500.0,0.00023013,2]
[357175930,1743859859015,-8408.16,0.00023013,2]
[357175931,1743859859024,-1191.1,0.00023013,2]
[357175932,1743859859033,-4899.66,0.00023013,2]
[357175933,1743859859042,-500.0,0.00023013,2]
[357175934,1743859859051,-885.72,0.00023013,2]
[357175935,1743859859060,-500.0,0.00023013,2]
[357175936,1743859859070,-696.05,0.00023013,2]
[357175937,1743859859079,-500.0,0.00023013,2]
[357175938,1743859859089,-500.0,0.00023013,2]
[357175939,1743859859099,-500.0,0.00023013,2]
[357175940,1743859859108,-2077.48,0.00023013,2]
[357175941,1743859859117,-569.02,0.00023013,2]
[357175942,1743859859126,-2289.66,0.00023013,2]
[357175943,1743859859135,-500.0,0.00023013,2]
[357175944,1743859859145,-679.83,0.00023013,2]
[357175945,1743859859155,-49435.46,0.00023013,2]
[357175946,1743859859165,-2044.32,0.00023013,2]
[357175947,1743859859174,-3160.91,0.00023013,2]
[357175948,1743859859184,-500.0,0.00023013,2]
[357175949,1743859859193,-867.48,0.00023013,2]
[357175950,1743859859212,-1005.19,0.00023013,2]
[357175951,1743859859229,-1762.72,0.00023013,2]
[357175952,1743859859247,-500.0,0.00023013,2]
[357175953,1743859859266,-500.0,0.00023013,2]
[357175954,1743859859284,-5023.77,0.00023013,2]
[357175955,1743859859302,-737.72,0.00023013,2]
[357175956,1743859859319,-973.86,0.00023013,2]
[357175957,1743859859333,-500.0,0.00023013,2]
[357175958,1743859859353,-500.0,0.00023013,2]
[357175959,1743859859373,-500.96,0.00023013,2]
[357175960,1743859859389,-500.05,0.00023013,2]
[357175961,1743859859403,-990.94,0.00023013,2]
[357175962,1743859859423,-500.0,0.00023013,2]
[357175963,1743859859440,-500.0,0.00023013,2]
[357175964,1743859859454,-1947.85,0.00023013,2]
[357175965,1743859859470,-968.64,0.00023013,2]
[357175966,1743859859487,-500.0,0.00023013,2]
[357175967,1743859859502,-924.68,0.00023013,2]
[357175968,1743859859520,-9164.62942668,0.00023245,4]
[357175969,1743859859535,-250.7343374,0.00023279,2]
[357175970,1743859859551,-652.1190316,0.00023287,3]
[357175971,1743859859566,-710.35,0.00023287,2]
[357175972,1743859859581,-500.0,0.00023287,2]
[357175973,1743859859596,-961.8,0.00023287,2]
[357175974,1743859859612,-852.98,0.00023287,2]
[357175975,1743859859628,-938.67,0.00023287,2]
[357175976,1743859859643,-500.0,0.00023287,2]
[357175977,1743859859659,-500.0,0.00023287,2]
[357175978,1743859859676,-613.8,0.00023287,2]
[357175979,1743859859692,-500.0,0.00023287,2]
[357175980,1743859859707,-500.0,0.00023287,2]
[357175981,1743859859723,-510.53,0.00023287,2]
[357175982,1743859859738,-500.0,0.00023287,2]
[357175983,1743859859753,-500.0,0.00023287,2]
[357175984,1743859859767,-953.92,0.00023287,2]
[357175985,1743859859782,-500.0,0.00023287,2]
[357175986,1743859859798,-1128.6,0.00023287,2]
[357175987,1743859859814,-3429.77,0.00023287,2]
[357175988,1743859859830,-1872.54,0.00023287,2]
[357175989,1743859859844,-555.9,0.00023287,2]
[357175990,1743859859860,-3080.4,0.00023287,2]
[357175991,1743859859875,-933.84,0.00023287,2]
[357175992,1743859859892,-1244.89,0.00023287,2]
[357175993,1743859859907,-8059.55,0.00023287,2]
[357175994,1743859859921,-500.0,0.00023287,2]
[357175995,1743859859936,-479.23342691,0.00023287,2]
[357175996,1743859860031,-1252.18,0.00023287,2]
[357175997,1743859860047,-500.0,0.00023287,2]
[357175998,1743859860057,-2473.04,0.00023287,2]
[357175999,1743859860067,-500.0,0.00023287,2]
[357176000,1743859860077,-1572.71,0.00023287,2]
[357176001,1743859860087,-678.98,0.00023287,2]
[357176002,1743859860097,-3271.08,0.00023287,2]
[357176003,1743859860106,-500.0,0.00023287,2]
[357176004,1743859860116,-500.0,0.00023287,2]
[357176005,1743859860125,-8408.16,0.00023287,2]
[357176006,1743859860135,-1191.1,0.00023287,2]
[357176007,1743859860144,-4899.66,0.00023287,2]
[357176008,1743859860154,-500.0,0.00023287,2]
[357176009,1743859860163,-885.72,0.00023287,2]
[357176010,1743859860174,-500.0,0.00023287,2]
[357176011,1743859860183,-696.05,0.00023287,2]
[357176012,1743859860193,-500.0,0.00023287,2]
[357176013,1743859860202,-500.0,0.00023287,2]
[357176014,1743859860211,-500.0,0.00023287,2]
[357176015,1743859860220,-2077.48,0.00023287,2]
[357176016,1743859860230,-569.02,0.00023287,2]
[357176017,1743859860240,-2289.66,0.00023287,2]
[357176018,1743859860249,-500.0,0.00023287,2]
[357176019,1743859860259,-679.83,0.00023287,2]
[357176020,1743859860268,-49435.46,0.00023287,2]
[357176021,1743859860278,-2044.32,0.00023287,2]
[357176022,1743859860287,-3160.91,0.00023287,2]
[357176023,1743859860299,-500.0,0.00023287,2]
[357176024,1743859860309,-867.48,0.00023287,2]
[357176025,1743859860318,-1005.19,0.00023287,2]
[357176026,1743859860328,-1762.72,0.00023287,2]
[357176027,1743859860337,-500.0,0.00023287,2]
[357176028,1743859860347,-500.0,0.00023287,2]
[357176029,1743859860357,-5023.77,0.00023287,2]
[357176030,1743859860367,-737.72,0.00023287,2]
[357176031,1743859860377,-973.86,0.00023287,2]
[357176032,1743859860387,-500.0,0.00023287,2]
[357176033,1743859860397,-412.82704108,0.00023287,2]
[357176034,1743859860406,-500.96,0.00023287,2]
[357176035,1743859860416,-500.05,0.00023287,2]
[357176036,1743859860426,-990.94,0.00023287,2]
[357176037,1743859860436,-500.0,0.00023287,2]
[357176038,1743859860446,-500.0,0.00023287,2]
[357176039,1743859860456,-1947.85,0.00023287,2]
[357176040,1743859860467,-968.64,0.00023287,2]
[357176041,1743859860479,-500.0,0.00023287,2]
[357176042,1743859860489,-299.84,0.00023288,2]
[357176043,1743859860498,-299.84,0.00023288,2]
[357176044,1743859860510,-500.0,0.00023288,2]
[357176045,1743859860519,-158.09930135,0.00023288,2]
[357176046,1743859860528,-154.02497516,0.00023288,2]
[357176047,1743859860539,-2330.40045931,0.00023298,2]
[357176048,1743859860551,-299.84,0.00023315,2]
[357176049,1743859860560,-500.0,0.00023315,2]
[357176050,1743859860570,-286.14964928,0.00023339,5]
[357176051,1743859860579,-500.0,0.00023343,2]
[357176052,1743859860589,-500.0,0.0002337,2]
[357176053,1743859860598,-500.0,0.00023398,2]
[357176054,1743859860608,-500.0,0.00023425,2]
[357176055,1743859860617,-500.0,0.00023452,2]
[357176056,1743859860626,-710.35,0.00023561,2]
[357176057,1743859860636,-500.0,0.00023561,2]
[357176058,1743859860646,-961.8,0.00023561,2]
[357176059,1743859860656,-852.98,0.00023561,2]
[357176060,1743859860666,-938.67,0.00023561,2]
[357176061,1743859860675,-500.0,0.00023561,2]
[357176062,1743859860685,-500.0,0.00023561,2]
[357176063,1743859860695,-510.53,0.00023561,2]
[357176064,1743859860705,-151.0,0.00023561,7]
[357176065,1743859860714,-500.0,0.00023561,2]
[357176066,1743859860723,-500.0,0.00023561,2]
[357176067,1743859860733,-953.92,0.00023561,2]
[357176068,1743859860743,-500.0,0.00023561,2]
[357176069,1743859860752,-1128.6,0.00023561,2]
[357176070,1743859860762,-3429.77,0.00023561,2]
[357176071,1743859860771,-1872.54,0.00023561,2]
[357176072,1743859860780,-555.9,0.00023561,2]
[357176073,1743859860790,-3080.4,0.00023561,2]
[357176074,1743859860802,-933.84,0.00023561,2]
[357176075,1743859860812,-1244.89,0.00023561,2]
[357176076,1743859860822,-8059.55,0.00023561,2]
[357176077,1743859860832,-500.0,0.00023561,2]
[357176078,1743859860842,-1252.18,0.00023561,2]
[357176079,1743859860851,-500.0,0.00023561,2]
[357176080,1743859860861,-2473.04,0.00023561,2]
[357176081,1743859860871,-500.0,0.00023561,2]
[357176082,1743859860880,-1572.71,0.00023561,2]
[357176083,1743859860890,-678.98,0.00023561,2]
[357176084,1743859860900,-3271.08,0.00023561,2]
[357176085,1743859860909,-500.0,0.00023561,2]
[357176086,1743859860919,-566.70839937,0.00023561,2]
[357176087,1743859860928,-8408.16,0.00023561,2]
[357176088,1743859860938,-1191.1,0.00023561,2]
[357176089,1743859860948,-4899.66,0.00023561,2]
[357176090,1743859860958,-500.0,0.00023561,2]
[357176091,1743859860967,-885.72,0.00023561,2]
[357176092,1743859860978,-500.0,0.00023561,2]
[357176093,1743859860989,-696.05,0.00023561,2]
[357176094,1743859860999,-500.0,0.00023561,2]
[357176095,1743859861009,-500.0,0.00023561,2]
[357176096,1743859861018,-500.0,0.00023561,2]
[357176097,1743859861027,-2077.48,0.00023561,2]
[357176098,1743859861037,-569.02,0.00023561,2]
[357176099,1743859861048,-2289.66,0.00023561,2]
[357176100,1743859861116,-500.0,0.00023561,2]
[357176101,1743859861126,-679.83,0.00023561,2]
[357176102,1743859861135,-49435.46,0.00023561,2]
[357176103,1743859861145,-2044.32,0.00023561,2]
[357176104,1743859861155,-3160.91,0.00023561,2]
[357176105,1743859861164,-235.78,0.00023561,2]
[357176106,1743859861174,-867.48,0.00023561,2]
[357176107,1743859861184,-1005.19,0.00023561,2]
[357176108,1743859861194,-1762.72,0.00023561,2]
[357176109,1743859861203,-500.0,0.00023561,2]
[357176110,1743859861213,-500.0,0.00023561,2]
[357176111,1743859861223,-5023.77,0.00023561,2]
[357176112,1743859861233,-737.72,0.00023561,2]
[357176113,1743859861242,-973.86,0.00023561,2]
[357176114,1743859861252,-500.0,0.00023561,2]
[357176115,1743859861262,-500.96,0.00023561,2]
[357176116,1743859861272,-500.05,0.00023561,2]
[357176117,1743859861282,-990.94,0.00023561,2]
[357176118,1743859861291,-500.0,0.00023561,2]
[357176119,1743859861302,-500.0,0.00023561,2]
[357176120,1743859861312,-1947.85,0.00023561,2]
[357176121,1743859861322,-968.64,0.00023561,2]
[357176122,1743859861331,-500.0,0.00023561,2]
[357176123,1743859861341,-2100.0,0.00023664,2]
[357176124,1743859861351,-710.35,0.00023835,2]
[357176125,1743859861361,-500.0,0.00023835,2]
[357176126,1743859861370,-961.8,0.00023835,2]
[357176127,1743859861380,-852.98,0.00023835,2]
[357176128,1743859861390,-938.67,0.00023835,2]
[357176129,1743859861400,-500.0,0.00023835,2]
[357176130,1743859861409,-465.97,0.00023835,2]
[357176131,1743859861419,-510.53,0.00023835,2]
[357176132,1743859861428,-500.0,0.00023835,2]
[357176133,1743859861437,-953.92,0.00023835,2]
[357176134,1743859861447,-500.0,0.00023835,2]
[357176135,1743859861457,-1128.6,0.00023835,2]
[357176136,1743859861471,-3429.77,0.00023835,2]
[357176137,1743859861481,-1872.54,0.00023835,2]
[357176138,1743859861491,-555.9,0.00023835,2]
[357176139,1743859861500,-3080.4,0.00023835,2]
[357176140,1743859861511,-933.84,0.00023835,2]
[357176141,1743859861520,-1244.89,0.00023835,2]
[357176142,1743859861530,-8059.55,0.00023835,2]
[357176143,1743859861540,-500.0,0.00023835,2]
[357176144,1743859861552,-1252.18,0.00023835,2]
[357176145,1743859861561,-500.0,0.00023835,2]
[357176146,1743859861571,-2473.04,0.00023835,2]
[357176147,1743859861581,-1572.71,0.00023835,2]
[357176148,1743859861591,-678.98,0.00023835,2]
[357176149,1743859861602,-3271.08,0.00023835,2]
[357176150,1743859861612,-603.86,0.00023835,2]
[357176151,1743859861622,-8408.16,0.00023835,2]
[357176152,1743859861633,-1191.1,0.00023835,2]
[357176153,1743859861644,-4899.66,0.00023835,2]
[357176154,1743859861654,-500.0,0.00023835,2]
[357176155,1743859861664,-885.72,0.00023835,2]
[357176156,1743859861673,-500.0,0.00023835,2]
[357176157,1743859861684,-696.05,0.00023835,2]
[357176158,1743859861694,-500.0,0.00023835,2]
[357176159,1743859861704,-500.0,0.00023835,2]
[357176160,1743859861715,-2077.48,0.00023835,2]
[357176161,1743859861725,-569.02,0.00023835,2]
[357176162,1743859861736,-2289.66,0.00023835,2]
[357176163,1743859861747,-500.0,0.00023835,2]
[357176164,1743859861757,-679.83,0.00023835,2]
[357176165,1743859861767,-49435.46,0.00023835,2]
[357176166,1743859861778,-2044.32,0.00023835,2]
[357176167,1743859861788,-3160.91,0.00023835,2]
[357176168,1743859861803,-867.48,0.00023835,2]
[357176169,1743859861813,-1005.19,0.00023835,2]
[357176170,1743859861823,-1762.72,0.00023835,2]
[357176171,1743859861833,-500.0,0.00023835,2]
[357176172,1743859861843,-5023.77,0.00023835,2]
[357176173,1743859861853,-737.72,0.00023835,2]
[357176174,1743859861863,-973.86,0.00023835,2]
[357176175,1743859861873,-500.0,0.00023835,2]
[357176176,1743859861883,-500.96,0.00023835,2]
[357176177,1743859861893,-500.05,0.00023835,2]
[357176178,1743859861902,-990.94,0.00023835,2]
[357176179,1743859861911,-500.0,0.00023835,2]
[357176180,1743859861921,-1947.85,0.00023835,2]
[357176181,1743859861931,-968.64,0.00023835,2]
[357176182,1743859861940,-500.0,0.00023835,2]
[357176183,1743859861950,-9164.62942668,0.00023969,5]
[357176184,1743859861960,-2000.0,0.00024,4]
[357176185,1743859861969,-75293.07429006,0.00024,5]
[357176186,1743859861979,-2000.0,0.00024,2]
[357176187,1743859861988,-2000.0,0.00024,2]
[357176188,1743859861998,-1047.0,0.00024,2]
[357176189,1743859862008,-151.0,0.00024,7]
[357176190,1743859862018,-710.35,0.00024109,2]
[357176191,1743859862028,-500.0,0.00024109,2]
[357176192,1743859862039,-961.8,0.00024109,2]
[357176193,1743859862051,-852.98,0.00024109,2]
[357176194,1743859862061,-938.67,0.00024109,2]
[357176195,1743859862071,-542.52980918,0.00024109,2]
[357176196,1743859862081,-510.53,0.00024109,2]
[357176197,1743859862091,-500.0,0.00024109,2]
[357176198,1743859862101,-953.92,0.00024109,2]
[357176199,1743859862111,-1128.6,0.00024109,2]
[357176200,1743859862121,-3429.77,0.00024109,2]
[357176201,1743859862131,-1872.54,0.00024109,2]
[357176202,1743859862140,-555.9,0.00024109,2]
[357176203,1743859862150,-3080.4,0.00024109,2]
[357176204,1743859862160,-933.84,0.00024109,2]
[357176205,1743859862170,-1244.89,0.00024109,2]
[357176206,1743859862179,-8059.55,0.00024109,2]
[357176207,1743859862189,-500.0,0.00024109,2]
[357176208,1743859862199,-1252.18,0.00024109,2]
[357176209,1743859862208,-2473.04,0.00024109,2]
[357176210,1743859862217,-1572.71,0.00024109,2]
[357176211,1743859862227,-678.98,0.00024109,2]
[357176212,1743859862237,-3271.08,0.00024109,2]
[357176213,1743859862246,-8408.16,0.00024109,2]
[357176214,1743859862255,-1191.1,0.00024109,2]
[357176215,1743859862265,-4899.66,0.00024109,2]
[357176216,1743859862274,-885.72,0.00024109,2]
[357176217,1743859862284,-696.05,0.00024109,2]
[357176218,1743859862294,-500.0,0.00024109,2]
[357176219,1743859862304,-2077.48,0.00024109,2]
[357176220,1743859862313,-569.02,0.00024109,2]
[357176221,1743859862323,-2289.66,0.00024109,2]
[357176222,1743859862333,-679.83,0.00024109,2]
[357176223,1743859862342,-49435.46,0.00024109,2]
[357176224,1743859862352,-2044.32,0.00024109,2]
[357176225,1743859862362,-3160.91,0.00024109,2]
[357176226,1743859862372,-867.48,0.00024109,2]
[357176227,1743859862382,-1005.19,0.00024109,2]
[357176228,1743859862392,-1762.72,0.00024109,2]
[357176229,1743859862401,-500.0,0.00024109,2]
[357176230,1743859862411,-5023.77,0.00024109,2]
[357176231,1743859862421,-737.72,0.00024109,2]
[357176232,1743859862431,-973.86,0.00024109,2]
[357176233,1743859862441,-500.96,0.00024109,2]
[357176234,1743859862451,-500.05,0.00024109,2]
[357176235,1743859862462,-990.94,0.00024109,2]
[357176236,1743859862473,-500.0,0.00024109,2]
[357176237,1743859862484,-1947.85,0.00024109,2]
[357176238,1743859862495,-968.64,0.00024109,2]
[357176239,1743859862505,-151.0,0.0002411,7]
[357176240,1743859862515,-151.0,0.0002411,7]
[357176241,1743859862526,-151.0,0.0002411,7]
[357176242,1743859862537,-151.0,0.0002411,7]
[357176243,1743859862549,-151.0,0.0002411,7]
[357176244,1743859862560,-151.0,0.0002411,7]
[357176245,1743859862570,-151.0,0.0002411,7]
[357176246,1743859862580,-153.272985,0.00024176,7]
[357176247,1743859862590,-4590.84,0.00024273,2]
[357176248,1743859862600,-710.35,0.00024383,2]
[357176249,1743859862610,-500.0,0.00024383,2]
[357176250,1743859862621,-961.8,0.00024383,2]
[357176251,1743859862631,-852.98,0.00024383,2]
[357176252,1743859862641,-938.67,0.00024383,2]
[357176253,1743859862651,-510.53,0.00024383,2]
[357176254,1743859862661,-249.965512,0.00024383,7]
[357176255,1743859862671,-500.0,0.00024383,2]
[357176256,1743859862680,-953.92,0.00024383,2]
[357176257,1743859862690,-1128.6,0.00024383,2]
[357176258,1743859862700,-3429.77,0.00024383,2]
[357176259,1743859862710,-1872.54,0.00024383,2]
[357176260,1743859862719,-555.9,0.00024383,2]
[357176261,1743859862729,-3080.4,0.00024383,2]
[357176262,1743859862739,-933.84,0.00024383,2]
[357176263,1743859862749,-1244.89,0.00024383,2]
[357176264,1743859862759,-8059.55,0.00024383,2]
[357176265,1743859862769,-500.0,0.00024383,2]
[357176266,1743859862778,-1252.18,0.00024383,2]
[357176267,1743859862788,-2473.04,0.00024383,2]
[357176268,1743859862799,-1572.71,0.00024383,2]
[357176269,1743859862809,-678.98,0.00024383,2]
[357176270,1743859862818,-3271.08,0.00024383,2]
[357176271,1743859862829,-8408.16,0.00024383,2]
[357176272,1743859862839,-1191.1,0.00024383,2]
[357176273,1743859862849,-4899.66,0.00024383,2]
[357176274,1743859862858,-885.72,0.00024383,2]
[357176275,1743859862868,-696.05,0.00024383,2]
[357176276,1743859862878,-500.0,0.00024383,2]
[357176277,1743859862887,-2077.48,0.00024383,2]
[357176278,1743859862896,-569.02,0.00024383,2]
[357176279,1743859862906,-2289.66,0.00024383,2]
[357176280,1743859862915,-679.83,0.00024383,2]
[357176281,1743859862925,-49435.46,0.00024383,2]
[357176282,1743859862935,-2044.32,0.00024383,2]
[357176283,1743859862945,-3160.91,0.00024383,2]
[357176284,1743859862954,-867.48,0.00024383,2]
[357176285,1743859862964,-1005.19,0.00024383,2]
[357176286,1743859862974,-1762.72,0.00024383,2]
[357176287,1743859862984,-512.66,0.00024383,2]
[357176288,1743859862994,-5023.77,0.00024383,2]
[357176289,1743859863004,-737.72,0.00024383,2]
[357176290,1743859863014,-973.86,0.00024383,2]
[357176291,1743859863024,-500.96,0.00024383,2]
[357176292,1743859863034,-500.05,0.00024383,2]
[357176293,1743859863044,-990.94,0.00024383,2]
[357176294,1743859863055,-500.0,0.00024383,2]
[357176295,1743859863064,-1947.85,0.00024383,2]
[357176296,1743859863074,-968.64,0.00024383,2]
[357176297,1743859863084,-4590.84,0.00024547,2]
[357176298,1743859863094,-1455.51286607,0.00024567,2]
[357176299,1743859863105,-1000.0,0.00024652,2]
[357176300,1743859863115,-710.35,0.00024657,2]
[357176301,1743859863125,-556.7,0.00024657,2]
[357176302,1743859863135,-961.8,0.00024657,2]
[357176303,1743859863145,-852.98,0.00024657,2]
[357176304,1743859863155,-938.67,0.00024657,2]
[357176305,1743859863165,-510.53,0.00024657,2]
[357176306,1743859863175,-500.0,0.00024657,2]
[357176307,1743859863185,-953.92,0.00024657,2]
[357176308,1743859863195,-1128.6,0.00024657,2]
[357176309,1743859863206,-3429.77,0.00024657,2]
[357176310,1743859863216,-1872.54,0.00024657,2]
[357176311,1743859863227,-555.9,0.00024657,2]
[357176312,1743859863237,-3080.4,0.00024657,2]
[357176313,1743859863247,-253.67733478,0.00024657,2]
[357176314,1743859864093,-253.17580521,0.00019178,2]
[357176315,1743859864123,-1007.48603401,0.00018992,2]
[357176320,1743860657086,173.156209,0.00013699,2]
[357176347,1743861032307,-717.5869141,0.00016295,2]
[357176348,1743861032318,-669.4320861,0.00016518,2]
[357176349,1743861032328,-300.0,0.00016685,2]
[357176350,1743861032338,-300.0,0.00016685,2]
[357176351,1743861032348,-209.7892065,0.00016686,2]
[357176352,1743861032398,-22524.8889819,0.00016686,2]
[357176353,1743861032408,-602.93102,0.00016794,2]
[357176354,1743861032418,-760.2551235,0.00016851,2]
[357176355,1743861032427,-271.3567414,0.00017143,2]
[357176356,1743861032436,-1800.3301657,0.0001757,2]
[357176357,1743861032445,-656.29837822,0.0001764,2]
[357176358,1743861032454,-199.12728908,0.0001774,2]
[357176359,1743861032464,-308.30130094,0.00017912,2]
[357176360,1743861032473,-2222.71349798,0.00017912,2]
[357176361,1743861032655,-151.0,0.00018001,2]
[357176362,1743861032666,-40168.083854,0.00018011,2]
[357176363,1743861032675,-420.0,0.00018229,2]
[357176364,1743861032685,-420.0,0.00018229,2]
[357176365,1743861032694,-308.30130091,0.00018272,2]
[357176366,1743861032703,-7739.62052573,0.000183,2]
[357176367,1743861032712,-250.0,0.00018384,2]
[357176368,1743861032721,-2789.58691828,0.00018436,2]
[357176369,1743861032730,-308.30130091,0.00018632,2]